bitfinex/quotes_ETHUSD_20251125
["timestamp","ask_amount","ask_price","bid_price","bid_amount"]
[1764049027936,0.8934,2935.2,2935.1,0.001]
[1764049029453,0.426,2935.2,2935.1,0.001]
[1764049029948,0.621504,2935.4,2935.1,0.4947]
[1764049030266,0.621504,2935.4,2935.1,0.001]
[1764049030267,0.4726,2935.2,2935.1,0.001]
[1764049030616,1.299304,2935.2,2935.1,0.001]
[1764049031748,5.43182097,2935.2,2935.1,0.001]
[1764049032653,5.74886615,2935.2,2935.1,0.001]
[1764049033354,5.78288684,2935.2,2935.1,0.001]
[1764049034251,5.78270117,2935.2,2935.1,0.001]
[1764049035358,5.96468048,2935.2,2935.1,0.001]
[1764049035753,5.99870117,2935.2,2935.1,0.001]
[1764049035961,5.96468048,2935.2,2935.1,0.001]
[1764049036448,5.64782097,2935.2,2935.1,0.001]
[1764049037846,5.68184166,2935.2,2935.1,0.001]
[1764049038139,5.46584166,2935.2,2935.1,0.001]
[1764049038556,5.68184166,2935.2,2935.1,0.001]
[1764049039660,5.43182097,2935.2,2935.1,0.001]
[1764049039834,5.20601781,2935.7,2935.1,0.4861]
[1764049039835,3.40637926,2935.7,2935.1,0.4861]
[1764049040040,3.40637926,2935.7,2935.1,0.674]
[1764049040352,0.405504,2935.5,2935.2,0.4517]
[1764049040873,0.216,2935.5,2935.4,0.4851]
[1764049041172,0.72559411,2935.7,2935.4,0.4851]
[1764049041471,0.218,2935.8,2935.4,0.9368]
[1764049041642,1.13109811,2935.7,2935.6,0.4851]
[1764049041840,0.405504,2935.7,2935.6,0.4851]
[1764049042363,0.407504,2935.7,2935.6,0.4851]
[1764049042763,0.4574,2935.7,2935.1,4.04757711]
[1764049042969,0.49142069,2935.7,2935.1,3.59587711]
[1764049043193,0.49142069,2935.7,2935.2,0.4517]
[1764049043367,0.002,2935.7,2935.6,0.4851]
[1764049043900,0.002,2935.7,2935.1,3.59587711]
[1764049043901,0.4574,2935.7,2935.1,3.59587711]
[1764049044109,1.18299411,2935.7,2935.1,4.04757711]
[1764049044927,0.002,2935.7,2935.1,7.00291605]
[1764049045072,0.002,2935.7,2935.6,0.4851]
[1764049045993,0.5490536,2935.9,2935.6,0.4851]
[1764049046317,0.4391,2935.7,2935.1,4.04757711]
[1764049046470,0.4391,2935.7,2935.1,7.45461605]
[1764049047105,0.4391,2935.7,2935.2,0.4517]
[1764049048980,3.40645864,2935.6,2935.1,0.1889]
[1764049049179,3.40636354,2935.7,2935.1,3.40801587]
[1764049049381,0.72559411,2935.7,2935.1,4.03331587]
[1764049049588,0.72559411,2935.7,2935.1,3.58161587]
[1764049049777,0.72559411,2935.7,2935.1,4.03331587]
[1764049051315,4.132023,2935.7,2935.1,4.03331587]
[1764049052403,0.216,2935.6,2935.1,4.03331587]
[1764049052924,0.216,2935.6,2935.2,0.4517]
[1764049053123,0.94159411,2935.7,2935.5,0.4851]
[1764049053302,0.405504,2935.8,2935.6,0.4851]
[1764049054211,0.94159411,2935.9,2935.6,0.4851]
[1764049054379,0.2477,2935.7,2935.1,4.03331587]
[1764049054712,0.97329411,2935.7,2935.1,7.44035481]
[1764049054900,4.1317612,2935.9,2935.6,0.4851]
[1764049055106,4.9929612,2935.9,2935.2,0.4517]
[1764049055484,0.03402069,2935.8,2935.2,0.4517]
[1764049056417,0.72559411,2935.7,2935.2,3.85862058]
[1764049056722,0.03402069,2935.6,2935.2,0.4517]
[1764049058226,0.03402069,2935.6,2935.2,3.85861958]
[1764049061028,0.72559411,2935.6,2935.2,3.85861958]
[1764049061234,0.7596148,2935.6,2935.2,3.85861958]
[1764049061619,0.7596148,2935.6,2935.2,0.4517]
[1764049062733,0.7596148,2935.6,2935.1,3.58160221]
[1764049063043,0.4518,2935.5,2935.1,3.58160221]
[1764049063527,0.7596148,2935.6,2935.1,4.03330221]
[1764049063735,1.2114148,2935.6,2935.1,4.03330221]
[1764049064321,0.72559411,2935.6,2935.2,0.4517]
[1764049064533,3.90707828,2935.6,2935.5,0.4851]
[1764049067803,3.90707828,2935.6,2935.5,0.9368]
[1764049068810,3.90707828,2935.6,2935.5,0.4851]
[1764049070344,3.90707828,2935.6,2935.5,0.9546]
[1764049070736,3.90707828,2935.6,2935.5,0.4851]
[1764049070926,4.22549094,2935.6,2935.5,0.4851]
[1764049073148,3.90707828,2935.6,2935.5,0.4851]
[1764049073355,4.22533274,2935.6,2935.5,0.4851]
[1764049073654,4.66443274,2935.6,2935.2,3.40689955]
[1764049073839,3.90707828,2935.3,2935.1,0.001]
[1764049074018,0.72559411,2935.5,2935.1,0.001]
[1764049074224,4.12507828,2935.8,2935.4,0.4782]
[1764049074554,4.63467239,2935.8,2935.7,0.4782]
[1764049075119,0.72759411,2935.8,2935.7,0.4782]
[1764049075720,0.72759411,2935.8,2935.7,0.9477]
[1764049078344,0.72559411,2935.7,2935.4,3.40667252]
[1764049078551,0.72559411,2935.7,2935.6,0.4717]
[1764049079551,0.72559411,2935.7,2935.6,0.9397]
[1764049079752,0.72559411,2935.7,2935.6,0.4717]
[1764049080420,1.16959411,2935.7,2935.5,0.001]
[1764049080621,4.39897828,2935.6,2935.5,0.001]
[1764049081657,8.94263103,2935.6,2935.5,0.001]
[1764049082360,5.53617239,2935.6,2935.5,0.001]
[1764049083860,5.12457239,2935.6,2935.5,0.001]
[1764049084028,4.63267239,2935.6,2935.5,0.4727]
[1764049084361,4.63267239,2935.6,2935.5,0.9407]
[1764049085737,3.90907828,2935.8,2935.5,0.9407]
[1764049085941,4.63467239,2935.8,2935.7,0.4717]
[1764049086555,4.63467239,2935.8,2935.7,0.9397]
[1764049086724,4.63467239,2935.8,2935.7,0.4717]
[1764049086924,0.72559411,2935.7,2935.5,0.469]
[1764049087361,0.72559411,2935.7,2935.6,0.4717]
[1764049087932,0.72559411,2935.7,2935.6,0.9397]
[1764049088457,0.72559411,2935.7,2935.6,4.34615864]
[1764049089149,0.002,2935.8,2935.6,4.34615864]
[1764049089356,0.002,2935.8,2935.7,0.9397]
[1764049090634,0.002,2935.8,2935.7,4.3460426]
[1764049091659,0.002,2935.8,2935.7,0.9397]
[1764049091862,0.002,2935.8,2935.7,4.3460426]
[1764049092234,0.002,2935.8,2935.7,0.9397]
[1764049096388,0.72559411,2935.7,2935.5,0.001]
[1764049096578,4.81257828,2935.8,2935.5,0.001]
[1764049096579,3.90707828,2935.6,2935.5,0.001]
[1764049096743,4.39817828,2935.6,2935.5,0.001]
[1764049097840,4.39817828,2935.6,2935.5,0.4727]
[1764049098054,3.90707828,2935.6,2935.5,0.4727]
[1764049099066,0.72559411,2935.7,2935.5,0.4727]
[1764049100770,0.9027,2935.6,2935.5,0.001]
[1764049101275,0.4052,2935.6,2935.5,0.001]
[1764049101468,0.72559411,2935.7,2935.5,0.001]
[1764049101469,0.72559411,2935.7,2935.5,0.4791]
[1764049101669,0.72559411,2935.7,2935.6,0.4781]
[1764049106579,0.72559411,2935.7,2935.6,3.88455864]
[1764049106881,0.72559411,2935.7,2935.6,0.4781]
[1764049107748,1.61429411,2935.7,2935.5,0.001]
[1764049107949,5.52247239,2935.6,2935.5,0.001]
[1764049108350,6.46204093,2935.6,2935.5,0.001]
[1764049108580,9.86849957,2935.6,2935.5,0.001]
[1764049111287,5.84053693,2935.6,2935.5,0.001]
[1764049111487,6.05653693,2935.6,2935.5,0.001]
[1764049112078,9.46299557,2935.6,2935.5,0.001]
[1764049113056,5.02407239,2935.6,2935.5,0.001]
[1764049113280,5.24007239,2935.6,2935.5,0.001]
[1764049113976,5.02407239,2935.6,2935.5,0.001]
[1764049114508,4.63267239,2935.6,2935.5,0.4791]
[1764049115494,5.02517239,2935.6,2935.5,0.001]
[1764049115658,5.52147239,2935.6,2935.5,0.001]
[1764049116369,8.92793103,2935.6,2935.5,0.001]
[1764049116565,5.52147239,2935.6,2935.5,0.001]
[1764049117294,5.02517239,2935.6,2935.5,0.001]
[1764049117589,5.52147239,2935.6,2935.5,0.001]
[1764049119602,1.11809411,2935.6,2935.5,0.001]
[1764049119814,0.72559411,2935.6,2935.5,0.9552]
[1764049121216,0.72559411,2935.6,2935.5,4.36177468]
[1764049121919,0.72559411,2935.6,2935.5,0.9552]
[1764049122616,0.72559411,2935.6,2935.5,4.36177468]
[1764049122918,0.72559411,2935.6,2935.5,3.88567468]
[1764049123099,0.72559411,2935.6,2935.5,0.4791]
[1764049123298,0.72559411,2935.6,2935.5,3.88567468]
[1764049123698,0.72559411,2935.6,2935.5,4.36177468]
[1764049128120,0.002,2935.8,2935.5,4.36177468]
[1764049128301,0.002,2935.8,2935.7,0.4781]
[1764049130429,0.002,2935.8,2935.5,3.40752115]
[1764049130594,0.002,2935.8,2935.5,3.88942115]
[1764049132625,0.4946,2935.8,2935.5,3.40752115]
[1764049132830,0.4079,2935.6,2935.5,0.001]
[1764049133232,0.4079,2935.6,2935.5,3.40757468]
[1764049133533,0.4946,2935.8,2935.5,3.40757468]
[1764049134225,0.4079,2935.6,2935.5,0.001]
[1764049135327,0.4946,2935.8,2935.5,0.001]
[1764049135929,0.4079,2935.6,2935.5,0.001]
[1764049137411,0.8997,2935.6,2935.5,0.001]
[1764049138226,1.21939411,2935.8,2935.5,0.4885]
[1764049138426,0.72759411,2935.8,2935.5,0.4885]
[1764049138599,0.72759411,2935.8,2935.5,0.9718]
[1764049139534,0.72759411,2935.8,2935.5,4.37831408]
[1764049141100,0.002,2935.8,2935.7,0.4875]
[1764049141299,0.002,2935.8,2935.7,4.3771426]
[1764049141803,0.002,2935.8,2935.7,4.5931426]
[1764049142031,0.002,2935.8,2935.7,4.82963831]
[1764049142231,0.002,2935.8,2935.7,4.72963831]
[1764049144428,0.002,2935.8,2935.7,4.76370173]
[1764049144614,0.002,2935.8,2935.7,4.82963831]
[1764049145224,0.002,2935.8,2935.7,4.86370173]
[1764049146126,0.002,2935.8,2935.7,4.82963831]
[1764049147053,0.002,2935.8,2935.7,4.86370173]
[1764049148658,0.002,2935.8,2935.7,4.76370173]
[1764049149773,0.002,2935.8,2935.7,4.86370173]
[1764049149970,0.002,2935.8,2935.7,4.82963831]
[1764049153077,0.002,2935.8,2935.7,5.55523242]
[1764049153477,0.002,2935.8,2935.7,4.82963831]
[1764049158780,0.002,2935.8,2935.7,4.72963831]
[1764049159090,1e-08,2936.0,2935.9,0.993004]
[1764049159295,1e-08,2936.0,2935.9,5.48547321]
[1764049159631,1e-08,2936.0,2935.9,5.96877321]
[1764049159796,1e-08,2936.0,2935.9,9.87248377]
[1764049160898,1e-08,2936.0,2935.9,8.64138566]
[1764049161097,1e-08,2936.0,2935.9,4.39121056]
[1764049161398,1e-08,2936.0,2935.9,4.88161056]
[1764049161893,1e-08,2936.0,2935.9,4.39121056]
[1764049162078,1e-08,2936.0,2935.9,4.88161056]
[1764049163423,1e-08,2936.0,2935.9,4.42527166]
[1764049163779,1e-08,2936.0,2935.9,4.91567166]
[1764049164176,1e-08,2936.0,2935.9,5.01567166]
[1764049164592,1e-08,2936.0,2935.9,5.01667166]
[1764049165816,1e-08,2936.0,2935.9,5.74226577]
[1764049166032,1e-08,2936.0,2935.9,6.14776977]
[1764049166380,1e-08,2936.0,2935.9,9.97370867]
[1764049171024,0.002,2936.1,2936.0,1.13109811]
[1764049171230,0.002,2936.1,2936.0,9.84377321]
[1764049173418,0.002,2936.1,2936.0,13.71006776]
[1764049173615,0.002,2936.1,2936.0,13.61006776]
[1764049173815,0.002,2936.1,2936.0,13.71006776]
[1764049174134,0.002,2936.1,2936.0,9.04728866]
[1764049174430,0.4583,2936.1,2936.0,3.86629455]
[1764049174596,0.8865,2936.1,2936.0,3.86629455]
[1764049174794,0.8865,2936.1,2936.0,3.40599455]
[1764049174994,0.4583,2936.1,2936.0,3.40599455]
[1764049175388,0.4583,2936.1,2935.9,6.81322112]
[1764049176031,0.4583,2936.1,2936.0,0.4583]
[1764049178453,0.4583,2936.1,2936.0,3.86429455]
[1764049179360,0.458,2936.1,2936.0,3.86429455]
[1764049180272,0.458,2936.1,2936.0,3.40599455]
[1764049180568,0.458,2936.1,2935.9,0.001]
[1764049181294,0.002,2936.1,2935.9,0.001]
[1764049181582,0.002,2936.1,2936.0,0.4954]
[1764049182856,0.002,2936.1,2936.0,3.90239455]
[1764049183873,0.4263,2936.1,2936.0,3.40699455]
[1764049184079,0.8862,2936.1,2936.0,3.40699455]
[1764049184679,0.002,2936.1,2936.0,3.90239455]
[1764049184883,0.002,2936.1,2936.0,0.001]
[1764049185884,0.002,2936.1,2936.0,0.4964]
[1764049186504,0.002,2936.1,2936.0,3.90239455]
[1764049187499,0.4267,2936.1,2936.0,3.40699455]
[1764049188879,0.4267,2936.1,2936.0,0.001]
[1764049189282,0.8862,2936.1,2936.0,0.001]
[1764049189496,0.4267,2936.1,2936.0,0.001]
[1764049191607,0.002,2936.1,2936.0,0.4801]
[1764049191771,0.002,2936.1,2936.0,0.9558]
[1764049193645,0.002,2936.1,2936.0,8.39912487]
[1764049193846,0.002,2936.1,2936.0,4.46179455]
[1764049194148,0.002,2936.1,2936.0,4.49585449]
[1764049195101,0.002,2936.1,2936.0,3.98609455]
[1764049196405,0.002,2936.1,2936.0,4.02015449]
[1764049196605,0.002,2936.1,2936.0,8.38722487]
[1764049196818,0.002,2936.1,2936.0,8.35316493]
[1764049198730,0.002,2936.1,2936.0,9.07875904]
[1764049199465,0.002,2936.1,2936.0,13.34426304]
[1764049200487,1e-08,2936.4,2936.3,0.961504]
[1764049200764,1e-08,2936.4,2936.3,5.80636849]
[1764049200956,1e-08,2936.4,2936.3,6.27016849]
[1764049202364,1e-08,2936.4,2936.3,9.67581505]
[1764049203131,1e-08,2936.4,2936.3,17.43908543]
[1764049203339,1e-08,2936.4,2936.3,13.53581505]
[1764049203534,1e-08,2936.4,2936.3,13.67224511]
[1764049204444,1e-08,2936.4,2936.3,8.89967073]
[1764049204666,1e-08,2936.4,2936.3,12.66651105]
[1764049204892,1e-08,2936.4,2936.3,13.13031105]
[1764049205995,1e-08,2936.4,2936.3,12.66651105]
[1764049206302,1e-08,2936.4,2936.3,8.30724067]
[1764049207096,0.88260001,2936.4,2936.3,7.48164656]
[1764049207790,0.88260001,2936.4,2936.3,3.62164656]
[1764049208759,1e-08,2936.4,2936.3,4.07764656]
[1764049208993,1e-08,2936.4,2936.3,8.70651105]
[1764049209193,1e-08,2936.4,2936.3,8.80651105]
[1764049209511,1e-08,2936.4,2936.3,9.27031105]
[1764049209998,1e-08,2936.4,2936.3,8.80651105]
[1764049210372,1e-08,2936.4,2936.3,9.27031105]
[1764049211308,1e-08,2936.4,2936.3,8.80651105]
[1764049211666,1e-08,2936.4,2936.3,9.27031105]
[1764049212397,1e-08,2936.4,2936.3,13.57908543]
[1764049213490,1e-08,2936.4,2936.3,9.67581505]
[1764049214114,1e-08,2936.4,2936.3,13.47908543]
[1764049214328,1e-08,2936.4,2936.3,13.57908543]
[1764049215834,1e-08,2936.4,2936.3,9.67581505]
[1764049216628,1e-08,2936.4,2936.3,13.57908543]
[1764049217794,1e-08,2936.4,2936.3,14.03948543]
[1764049220309,1e-08,2936.4,2936.3,14.04048543]
[1764049222737,1e-08,2936.4,2936.3,13.99721505]
[1764049223028,0.38630001,2936.4,2936.3,13.07741505]
[1764049225313,1e-08,2936.4,2936.3,13.07741505]
[1764049225700,0.38730001,2936.4,2936.3,12.61701505]
[1764049225901,0.87610001,2936.4,2936.3,12.61701505]
[1764049226635,0.87610001,2936.4,2936.3,12.21151105]
[1764049227036,0.38730001,2936.4,2936.3,12.21151105]
[1764049228719,1e-08,2936.4,2936.3,12.21151105]
[1764049228919,0.38840001,2936.4,2936.3,12.21151105]
[1764049230020,1e-08,2936.4,2936.3,12.21151105]
[1764049231454,0.38940001,2936.4,2936.3,12.21151105]
[1764049232254,1e-08,2936.4,2936.3,12.66871105]
[1764049236958,0.45970001,2936.4,2936.3,12.21151105]
[1764049237157,1e-08,2936.4,2936.3,12.66871105]
[1764049237533,1e-08,2936.4,2936.3,17.24148143]
[1764049237733,0.38630001,2936.4,2936.3,12.40481105]
[1764049238661,1e-08,2936.4,2936.3,12.40481105]
[1764049239030,1e-08,2936.4,2936.3,12.86201105]
[1764049240981,1e-08,2936.4,2936.3,13.33821105]
[1764049245983,1e-08,2936.4,2936.3,12.86201105]
[1764049246274,1e-08,2936.4,2936.3,12.40481105]
[1764049246443,1e-08,2936.4,2936.3,12.86201105]
[1764049246647,1e-08,2936.4,2936.3,12.72047468]
[1764049247258,1e-08,2936.4,2936.3,13.19667468]
[1764049247930,1e-08,2936.4,2936.3,12.72047468]
[1764049249371,0.38630001,2936.4,2936.3,12.26327468]
[1764049249672,1e-08,2936.4,2936.3,12.72047468]
[1764049252569,1e-08,2936.4,2936.3,8.86047468]
[1764049255669,1e-08,2936.4,2936.3,9.20177468]
[1764049255867,1e-08,2936.4,2936.3,8.86047468]
[1764049256982,0.002,2936.7,2936.4,0.72559411]
[1764049257285,0.002,2936.7,2936.6,5.06732812]
[1764049257638,0.002,2936.7,2936.6,5.52632812]
[1764049258271,0.002,2936.7,2936.6,6.00922812]
[1764049259142,0.002,2936.7,2936.6,9.41452676]
[1764049259754,0.002,2936.7,2936.6,8.95552676]
[1764049261492,0.8833,2936.7,2936.6,3.88819864]
[1764049261678,0.8833,2936.7,2936.6,4.10419864]
[1764049262282,0.499,2936.7,2936.6,4.10419864]
[1764049262579,0.8833,2936.7,2936.6,4.10419864]
[1764049267460,0.499,2936.7,2936.6,7.96593265]
[1764049267885,0.8833,2936.7,2936.6,7.96593265]
[1764049273277,0.8833,2936.7,2936.6,7.86593265]
[1764049273482,0.8833,2936.7,2936.6,4.10419864]
[1764049276611,0.8833,2936.7,2936.6,3.88819864]
[1764049276902,0.8833,2936.7,2936.6,4.10419864]
[1764049277070,0.8833,2936.7,2936.6,3.62129864]
[1764049277269,0.8833,2936.7,2936.3,0.001]
[1764049277535,0.8833,2936.7,2936.3,0.217]
[1764049277536,0.0038,2936.4,2936.3,0.217]
[1764049278104,0.4867,2936.4,2936.3,0.217]
[1764049279206,0.0038,2936.4,2936.3,0.217]
[1764049279501,0.4849,2936.7,2936.4,0.1]
[1764049280090,0.4849,2936.7,2936.5,0.4849]
[1764049280495,0.3983,2936.6,2936.5,0.4849]
[1764049280698,0.3983,2936.6,2936.5,0.7009]
[1764049280937,0.861,2936.6,2936.5,0.7009]
[1764049281497,0.861,2936.6,2936.5,4.1063146]
[1764049281693,0.861,2936.6,2936.5,3.8903146]
[1764049281902,0.861,2936.6,2936.5,3.6214146]
[1764049283744,0.861,2936.6,2936.3,0.001]
[1764049284034,0.0239,2936.4,2936.3,3.40662843]
[1764049284422,0.4866,2936.4,2936.3,3.40662843]
[1764049284620,0.4866,2936.4,2936.3,0.001]
[1764049284825,0.4866,2936.4,2936.3,3.40664656]
[1764049285021,0.4866,2936.4,2936.3,0.001]
[1764049288656,8.05936859,2936.4,2936.0,0.001]
[1764049288832,4.51492812,2936.1,2936.0,0.001]
[1764049289035,0.75319411,2936.1,2936.0,3.40699455]
[1764049289219,1.21589411,2936.1,2936.0,3.40699455]
[1764049289818,1.21589411,2936.1,2936.0,0.001]
[1764049290343,0.4903,2936.1,2936.0,0.001]
[1764049291826,0.4903,2936.1,2935.3,1.02492747]
[1764049291827,10.4049891,2936.0,2935.3,1.02492747]
[1764049292027,10.4049891,2936.0,2934.9,0.001]
[1764049292028,3.81231079,2935.3,2934.9,0.001]
[1764049292229,0.405504,2934.8,2933.8,0.001]
[1764049292433,4.48732812,2934.5,2933.8,0.001]
[1764049292742,0.72979411,2934.5,2934.1,3.40919135]
[1764049292949,1.19249411,2934.5,2934.1,6.81739147]
[1764049293830,1.19249411,2934.5,2934.1,3.40919135]
[1764049294025,1.19249411,2934.5,2934.1,0.001]
[1764049294630,0.4669,2934.5,2934.1,0.001]
[1764049294982,0.6461,2934.9,2934.4,0.4527]
[1764049295185,0.6461,2934.9,2934.4,1.25845815]
[1764049295398,0.4589,2934.5,2934.4,0.35355815]
[1764049295966,0.25712561,2934.8,2934.4,0.35355815]
[1764049296596,0.1834,2934.9,2934.5,6.8154711]
[1764049296795,0.1834,2934.9,2934.5,10.22320665]
[1764049297159,0.1834,2934.9,2934.5,10.67640665]
[1764049297684,0.1834,2934.9,2934.5,7.2686711]
[1764049297878,0.1834,2934.9,2934.5,10.67640665]
[1764049298056,0.4404,2935.3,2934.6,0.4532]
[1764049298595,0.4404,2935.3,2934.7,6.81500664]
[1764049299589,0.4404,2935.3,2934.8,0.94159411]
[1764049300087,0.4404,2935.3,2934.8,1.15759411]
[1764049300288,0.0044,2934.9,2934.8,1.15759411]
[1764049300462,0.0044,2934.9,2934.8,0.94159411]
[1764049300658,0.0044,2934.9,2934.8,4.34898132]
[1764049300866,0.0044,2934.9,2934.8,3.40738721]
[1764049301564,0.1834,2935.6,2934.8,7.26647442]
[1764049301757,0.1834,2935.6,2934.8,7.71967442]
[1764049302101,0.4404,2935.5,2934.8,7.26647442]
[1764049302268,0.1834,2935.6,2934.9,0.4532]
[1764049302455,0.1834,2935.6,2935.0,0.216]
[1764049302659,0.1834,2935.6,2935.2,10.22076858]
[1764049303192,0.4404,2935.3,2935.2,3.40692286]
[1764049303513,0.1834,2935.6,2935.2,6.81384572]
[1764049303699,0.1834,2935.6,2935.2,7.26554572]
[1764049304571,0.1854,2935.6,2935.2,7.26554572]
[1764049304928,0.0044,2935.3,2934.8,3.40738721]
[1764049305063,0.4404,2935.2,2935.0,0.216]
[1764049305575,0.0044,2935.1,2935.0,0.216]
[1764049305962,0.6215,2935.6,2935.0,0.6677]
[1764049306164,0.6258,2935.6,2935.0,0.6677]
[1764049306403,0.6258,2935.6,2935.0,0.216]
[1764049306713,0.4404,2935.1,2935.0,3.62315502]
[1764049306889,0.1854,2935.6,2935.0,7.03031004]
[1764049307105,0.1854,2935.6,2935.0,7.48201004]
[1764049308072,0.0044,2935.1,2935.0,3.62315502]
[1764049310102,0.1854,2935.6,2935.0,7.95701004]
[1764049311105,0.6258,2935.6,2935.0,7.49481004]
[1764049312281,0.1854,2935.6,2935.1,0.1974]
[1764049312478,0.1854,2935.6,2935.1,0.6596]
[1764049313284,0.1854,2935.6,2935.2,6.81384572]
[1764049314309,0.6258,2935.6,2935.2,6.81384572]
[1764049314609,0.0044,2935.3,2935.2,6.81384572]
[1764049314812,0.0044,2935.3,2935.1,3.40700705]
[1764049315013,0.1854,2935.6,2935.2,0.4645]
[1764049315517,0.1854,2935.6,2935.3,3.40680679]
[1764049315811,0.6258,2935.6,2935.3,3.40680679]
[1764049315984,0.1854,2935.6,2935.3,6.81361358]
[1764049316404,0.1854,2935.6,2935.3,3.40680679]
[1764049316714,0.1854,2935.6,2935.3,6.81361358]
[1764049316901,0.002,2935.6,2935.3,7.27891358]
[1764049317487,0.002,2935.6,2935.3,6.81361358]
[1764049319188,0.002,2935.6,2935.5,0.497]
[1764049319377,0.002,2935.6,2935.5,4.36887468]
[1764049320314,0.1002,2935.6,2935.5,3.40657468]
[1764049321414,0.5475,2935.6,2935.5,3.40657468]
[1764049321718,0.1002,2935.6,2935.5,3.40657468]
[1764049323212,0.1036,2935.6,2935.5,3.40657468]
[1764049324016,0.1002,2935.6,2935.5,3.40657468]
[1764049326136,0.002,2935.6,2935.5,3.40657468]
[1764049326342,0.1002,2935.6,2935.5,3.40657468]
[1764049327535,0.002,2935.6,2935.4,3.62268264]
[1764049328420,0.002,2935.6,2935.5,3.40657468]
[1764049329830,0.002,2935.6,2935.5,3.90357468]
[1764049330122,0.002,2935.6,2935.5,4.36887468]
[1764049330623,0.002,2935.6,2935.5,3.40657468]
[1764049330624,0.1002,2935.6,2935.5,3.40657468]
[1764049333550,0.5475,2935.6,2935.5,3.40657468]
[1764049334250,0.002,2935.6,2935.5,3.40657468]
[1764049334555,0.002,2935.6,2935.5,4.36887468]
[1764049339254,0.002,2935.6,2935.5,4.40294042]
[1764049339642,0.002,2935.6,2935.5,4.40394042]
[1764049340477,0.002,2935.6,2935.5,4.36987468]
[1764049341270,0.002,2935.6,2935.5,8.27666344]
[1764049342983,0.002,2935.6,2935.5,8.37666344]
[1764049343973,0.002,2935.6,2935.5,13.41455031]
[1764049344143,0.002,2935.9,2935.6,1.13109811]
[1764049344347,0.002,2935.9,2935.8,4.50558876]
[1764049344584,0.002,2935.9,2935.8,4.72158876]
[1764049344779,0.002,2935.9,2935.8,5.31905001]
[1764049346082,0.002,2935.9,2935.8,8.72527659]
[1764049346249,0.002,2935.9,2935.8,4.58202658]
[1764049347486,0.002,2935.9,2935.8,3.62222658]
[1764049347694,0.4529,2935.9,2935.8,3.62222658]
[1764049348196,0.591,2935.9,2935.8,3.62222658]
[1764049348690,0.6909,2935.9,2935.8,3.62222658]
[1764049349567,0.6909,2935.9,2935.8,0.216]
[1764049349794,0.6909,2935.9,2935.8,3.62222658]
[1764049350773,0.002,2935.9,2935.8,4.12102658]
[1764049350978,0.002,2935.9,2935.8,3.62222658]
[1764049351297,0.4476,2935.9,2935.8,3.62222658]
[1764049351789,0.5871,2935.9,2935.8,3.62222658]
[1764049352152,0.6909,2935.9,2935.8,3.62222658]
[1764049353050,0.6909,2935.9,2935.8,0.216]
[1764049353251,0.6909,2935.9,2935.8,3.62222658]
[1764049353449,0.002,2935.9,2935.8,3.62222658]
[1764049354160,0.002,2935.9,2935.8,4.15508884]
[1764049354362,0.002,2935.9,2935.8,4.12102658]
[1764049354566,0.002,2935.9,2935.8,4.58202658]
[1764049363041,0.002,2935.9,2935.8,3.62222658]
[1764049363243,0.4529,2935.9,2935.8,3.62222658]
[1764049363856,0.002,2935.9,2935.8,3.62222658]
[1764049364223,0.002,2935.9,2935.8,4.12102658]
[1764049364445,0.002,2935.9,2935.8,4.58202658]
[1764049364747,0.002,2935.9,2935.8,4.44583658]
[1764049366053,0.002,2935.9,2935.8,3.98483658]
[1764049366362,0.002,2935.9,2935.8,3.48603658]
[1764049366554,0.002,2935.9,2935.8,3.98483658]
[1764049366752,0.002,2935.9,2935.8,4.44583658]
[1764049367150,0.002,2935.9,2935.8,3.98483658]
[1764049369021,0.4529,2935.9,2935.8,3.48603658]
[1764049369563,0.002,2935.9,2935.8,3.48603658]
[1764049370369,0.002,2935.9,2935.8,3.95703658]
[1764049370562,0.4493,2935.9,2935.8,3.48603658]
[1764049372439,0.6908,2935.9,2935.8,3.48603658]
[1764049372697,0.5892,2935.9,2935.8,3.48603658]
[1764049373465,0.4493,2935.9,2935.8,3.48603658]
[1764049373665,0.002,2935.9,2935.8,4.44593658]
[1764049375045,0.002,2935.9,2935.8,3.95703658]
[1764049377348,0.002,2935.9,2935.8,4.42313658]
[1764049377750,0.002,2935.9,2935.8,3.95703658]
[1764049379265,0.002,2935.9,2935.8,3.48603658]
[1764049379462,0.2396,2935.9,2935.8,3.48603658]
[1764049381192,0.002,2935.9,2935.8,4.41553658]
[1764049382755,0.002,2935.9,2935.8,3.94943658]
[1764049383078,0.1002,2935.9,2935.8,3.48603658]
[1764049383283,0.2401,2935.9,2935.8,3.48603658]
[1764049383871,0.6874,2935.9,2935.8,3.48603658]
[1764049384089,0.6874,2935.9,2935.8,3.94943658]
[1764049384090,0.002,2935.9,2935.8,3.94943658]
[1764049384286,0.002,2935.9,2935.8,3.48603658]
[1764049384490,0.2431,2935.9,2935.8,3.48603658]
[1764049385662,0.002,2935.9,2935.8,3.94943658]
[1764049385866,0.002,2935.9,2935.8,4.41553658]
[1764049389261,0.002,2935.9,2935.8,3.94943658]
[1764049389948,0.002,2935.9,2935.8,3.48603658]
[1764049390152,0.002,2935.9,2935.8,3.48703658]
[1764049392066,0.002,2935.9,2935.8,3.95043658]
[1764049392469,0.002,2935.9,2935.8,4.41653658]
[1764049393662,0.002,2935.9,2935.8,3.95043658]
[1764049395492,0.002,2935.9,2935.8,3.48703658]
[1764049395794,0.4529,2935.9,2935.8,3.48703658]
[1764049396395,0.5924,2935.9,2935.8,3.48703658]
[1764049404713,0.5924,2935.9,2935.8,3.40722658]
[1764049404920,0.5924,2935.9,2935.8,3.62322658]
[1764049405925,0.002,2935.9,2935.8,4.55502658]
[1764049409200,0.002,2935.9,2935.8,4.08162658]
[1764049412104,0.002,2935.9,2935.8,4.55502658]
[1764049413003,0.002,2935.9,2935.8,4.08162658]
[1764049414039,0.002,2935.9,2935.8,4.55502658]